lending/lending_fUSD_20241120
["ID","MTS","AMOUNT","RATE_DAILY","PERIOD"]
[342805016,1732143127815,-615.04,0.00056986,120]
[342805017,1732143127826,-1213.36,0.00056986,120]
[342805018,1732143127837,-537.82,0.00056986,120]
[342805019,1732143127847,-500.0,0.00056986,120]
[342805020,1732143127856,-500.0,0.00056986,120]
[342805021,1732143127867,-500.0,0.00056986,120]
[342805022,1732143127876,-911.56,0.00056986,120]
[342805023,1732143127886,-1001.49,0.00056986,120]
[342805024,1732143127900,-1621.15,0.00056986,120]
[342805025,1732143127910,-1004.9,0.00056986,120]
[342805026,1732143127920,-1363.03,0.00056986,120]
[342805027,1732143127932,-670.6,0.00056986,120]
[342805028,1732143127943,-4519.72,0.00056986,120]
[342805029,1732143127953,-681.14,0.00056986,120]
[342805030,1732143127964,-597.02,0.00056986,120]
[342805031,1732143127975,-641.73073696,0.00056986,120]
[342805032,1732143127985,-1529.3,0.00056986,120]
[342805033,1732143127995,-500.0,0.00056986,120]
[342805034,1732143128006,-500.0,0.00056986,120]
[342805035,1732143128016,-5382.48,0.00056986,120]
[342805036,1732143128025,-2209.36,0.00056986,120]
[342805037,1732143128035,-640.41,0.00056986,120]
[342805038,1732143128045,-1045.28,0.00056986,120]
[342805039,1732143128055,-500.0,0.00056986,120]
[342805040,1732143128064,-500.0,0.00056986,120]
[342805041,1732143128074,-5113.62,0.00056986,120]
[342805042,1732143128084,-3525.53,0.00056986,120]
[342805043,1732143128093,-500.0,0.00056986,120]
[342805044,1732143128103,-5128.91,0.00056986,120]
[342805045,1732143128112,-1054.0,0.00057,120]
[342805046,1732143128122,-900.0,0.00057,2]
[342805047,1732143128131,-20000.0,0.00057,120]
[342805048,1732143128141,-26855.0,0.00057,120]
[342805049,1732143128151,-500.0,0.0005726,120]
[342805050,1732143128160,-500.0,0.0005726,120]
[342805051,1732143128170,-500.0,0.0005726,120]
[342805052,1732143128180,-500.0,0.0005726,120]
[342805053,1732143128191,-949.28,0.0005726,120]
[342805054,1732143128201,-588.18,0.0005726,120]
[342805055,1732143128211,-500.0,0.0005726,120]
[342805056,1732143128220,-500.0,0.0005726,120]
[342805057,1732143128229,-216.87,0.0005726,7]
[342805058,1732143128239,-500.0,0.0005726,120]
[342805059,1732143128248,-1647.84,0.0005726,120]
[342805060,1732143128258,-500.0,0.0005726,120]
[342805061,1732143128267,-672.22,0.0005726,120]
[342805062,1732143128277,-901.77,0.0005726,120]
[342805063,1732143128286,-500.0,0.0005726,120]
[342805064,1732143128295,-749.97,0.0005726,120]
[342805065,1732143128305,-500.0,0.0005726,120]
[342805066,1732143128314,-1584.28,0.0005726,120]
[342805067,1732143128323,-500.0,0.0005726,120]
[342805068,1732143128333,-500.0,0.0005726,120]
[342805069,1732143128343,-500.0,0.0005726,120]
[342805070,1732143128353,-698.15,0.0005726,120]
[342805071,1732143128363,-607.05241485,0.0005726,120]
[342805072,1732143128373,-500.0,0.0005726,120]
[342805073,1732143128382,-500.0,0.0005726,120]
[342805074,1732143128393,-500.0,0.0005726,120]
[342805075,1732143128402,-550.21,0.0005726,120]
[342805076,1732143128412,-838.1,0.0005726,120]
[342805077,1732143128421,-500.0,0.0005726,120]
[342805078,1732143128431,-500.0,0.0005726,120]
[342805079,1732143128441,-678.26,0.0005726,120]
[342805080,1732143128450,-500.0,0.0005726,120]
[342805081,1732143128460,-528.71,0.0005726,120]
[342805082,1732143128469,-577.89,0.0005726,120]
[342805083,1732143128478,-1058.89,0.0005726,120]
[342805084,1732143128488,-500.0,0.0005726,120]
[342805085,1732143128499,-500.0,0.0005726,120]
[342805086,1732143128510,-516.05,0.0005726,120]
[342805087,1732143128520,-500.0,0.0005726,120]
[342805088,1732143128532,-500.0,0.0005726,120]
[342805089,1732143128543,-1582.8,0.0005726,120]
[342805090,1732143128553,-512.91,0.0005726,120]
[342805091,1732143128562,-910.7,0.0005726,120]
[342805092,1732143128572,-500.0,0.0005726,120]
[342805093,1732143128582,-686.07,0.0005726,120]
[342805094,1732143128591,-500.0,0.0005726,120]
[342805095,1732143128601,-718.84,0.0005726,120]
[342805096,1732143128610,-500.0,0.0005726,120]
[342805097,1732143128619,-566.64,0.0005726,120]
[342805098,1732143128628,-388.88812172,0.0005726,120]
[342805099,1732143128638,-581.13,0.0005726,120]
[342805100,1732143128647,-558.19,0.0005726,120]
[342805101,1732143128656,-1275.31,0.0005726,120]
[342805102,1732143128665,-500.0,0.0005726,120]
[342805103,1732143128675,-500.0,0.0005726,120]
[342805104,1732143128686,-646.55,0.0005726,120]
[342805105,1732143128695,-500.0,0.0005726,120]
[342805106,1732143128705,-889.52,0.0005726,120]
[342805107,1732143128714,-243.17580402,0.0005726,120]
[342805108,1732143128729,-1844.67,0.0005726,120]
[342805109,1732143128738,-1345.16,0.0005726,120]
[342805110,1732143128971,-500.0,0.0005726,120]
[342805111,1732143128982,-1354.36,0.0005726,120]
[342805112,1732143128992,-500.0,0.0005726,120]
[342805113,1732143129001,-1126.54,0.0005726,120]
[342805114,1732143129011,-810.54,0.0005726,120]
[342805115,1732143129021,-1630.49,0.0005726,120]
[342805116,1732143129031,-1539.37,0.0005726,120]
[342805117,1732143129040,-1061.11,0.0005726,120]
[342805118,1732143129049,-159.74563194,0.0005726,120]
[342805119,1732143129058,-616.53,0.0005726,120]
[342805120,1732143129068,-500.0,0.0005726,120]
[342805121,1732143129076,-1163.7,0.0005726,120]
[342805122,1732143129086,-500.0,0.0005726,120]
[342805123,1732143129096,-500.0,0.0005726,120]
[342805124,1732143129105,-1697.48,0.0005726,120]
[342805125,1732143129115,-575.54965115,0.0005726,120]
[342805126,1732143129124,-768.83,0.0005726,120]
[342805127,1732143129134,-1494.04,0.0005726,120]
[342805128,1732143129143,-583.76,0.0005726,120]
[342805129,1732143129152,-500.0,0.0005726,120]
[342805130,1732143129162,-500.0,0.0005726,120]
[342805131,1732143129171,-500.0,0.0005726,120]
[342805132,1732143129180,-500.0,0.0005726,120]
[342805133,1732143129190,-1417.12,0.0005726,120]
[342805134,1732143129199,-500.0,0.0005726,120]
[342805135,1732143129208,-514.86,0.0005726,120]
[342805136,1732143129218,-580.28,0.0005726,120]
[342805137,1732143129227,-500.0,0.0005726,120]
[342805138,1732143129237,-500.0,0.0005726,120]
[342805139,1732143129246,-500.0,0.0005726,120]
[342805140,1732143129255,-625.85,0.0005726,120]
[342805141,1732143129264,-500.0,0.0005726,120]
[342805142,1732143129274,-835.63,0.0005726,120]
[342805143,1732143129283,-500.0,0.0005726,120]
[342805144,1732143129293,-1642.42,0.0005726,7]
[342805145,1732143129302,-538.58001708,0.0005726,120]
[342805146,1732143129311,-1168.69,0.0005726,120]
[342805147,1732143129320,-500.0,0.0005726,120]
[342805148,1732143129329,-785.67,0.0005726,120]
[342805149,1732143129339,-526.48,0.0005726,120]
[342805150,1732143129350,-1791.8,0.0005726,120]
[342805151,1732143129361,-500.0,0.0005726,120]
[342805152,1732143129371,-500.0,0.0005726,120]
[342805153,1732143129381,-500.0,0.0005726,120]
[342805154,1732143129390,-500.0,0.0005726,120]
[342805155,1732143129399,-500.0,0.0005726,120]
[342805156,1732143129408,-764.29,0.0005726,120]
[342805157,1732143129417,-937.69,0.0005726,120]
[342805158,1732143129427,-830.14,0.0005726,120]
[342805159,1732143129437,-500.0,0.0005726,58]
[342805160,1732143129449,-500.0,0.0005726,120]
[342805161,1732143129458,-481.68318738,0.0005726,120]
[342805162,1732143129467,-1926.82,0.0005726,120]
[342805163,1732143129476,-277.84,0.0005726,30]
[342805164,1732143129486,-513.97,0.0005726,120]
[342805165,1732143129494,-500.0,0.0005726,120]
[342805166,1732143129503,-1258.94,0.0005726,120]
[342805167,1732143129512,-615.91,0.0005726,120]
[342805168,1732143129521,-739.53,0.0005726,120]
[342805169,1732143129530,-500.0,0.0005726,120]
[342805170,1732143129540,-2364.09,0.0005726,120]
[342805171,1732143129550,-500.0,0.0005726,120]
[342805172,1732143129569,-1516.8,0.0005726,120]
[342805173,1732143129578,-644.03,0.0005726,120]
[342805174,1732143129587,-1222.69,0.0005726,120]
[342805175,1732143129596,-689.07,0.0005726,120]
[342805176,1732143129605,-2792.61,0.0005726,120]
[342805177,1732143129614,-475.1478405,0.0005726,120]
[342805178,1732143129624,-598.66,0.0005726,120]
[342805179,1732143129633,-517.71,0.0005726,120]
[342805180,1732143129643,-696.8,0.0005726,120]
[342805181,1732143129652,-670.6,0.0005726,120]
[342805182,1732143129662,-1622.41,0.0005726,120]
[342805183,1732143129671,-500.0,0.0005726,120]
[342805184,1732143129681,-732.47,0.0005726,120]
[342805185,1732143129692,-500.0,0.0005726,120]
[342805186,1732143129702,-500.0,0.0005726,120]
[342805187,1732143129711,-500.0,0.0005726,120]
[342805188,1732143129721,-3752.95,0.0005726,120]
[342805189,1732143129731,-694.86,0.0005726,120]
[342805190,1732143129742,-500.0,0.0005726,120]
[342805191,1732143129754,-527.72,0.0005726,120]
[342805192,1732143129764,-500.0,0.0005726,120]
[342805193,1732143129776,-2754.45,0.0005726,120]
[342805194,1732143129786,-500.0,0.0005726,120]
[342805195,1732143129797,-500.0,0.0005726,60]
[342805196,1732143129807,-1552.42,0.0005726,120]
[342805197,1732143129816,-777.0,0.0005726,120]
[342805198,1732143129825,-750.37,0.0005726,120]
[342805199,1732143129835,-586.88,0.0005726,120]
[342805200,1732143129844,-259.63476174,0.0005726,120]
[342805201,1732143129853,-546.79,0.0005726,120]
[342805202,1732143129863,-487.84906443,0.0005726,120]
[342805203,1732143129873,-1410.35,0.0005726,120]
[342805204,1732143129882,-622.81,0.0005726,120]
[342805205,1732143129893,-500.0,0.0005726,120]
[342805206,1732143129905,-1078.42,0.0005726,120]
[342805207,1732143129915,-2348.91,0.0005726,120]
[342805208,1732143129924,-1803.88,0.0005726,120]
[342805209,1732143129934,-875.42,0.0005726,120]
[342805210,1732143129955,-908.45,0.0005726,120]
[342805211,1732143129967,-1745.98,0.0005726,120]
[342805212,1732143129977,-643.69,0.0005726,120]
[342805213,1732143129987,-659.6,0.0005726,120]
[342805214,1732143129996,-500.0,0.0005726,120]
[342805215,1732143130006,-1212.54,0.0005726,120]
[342805216,1732143130016,-2042.25,0.0005726,120]
[342805217,1732143130025,-828.06,0.0005726,120]
[342805218,1732143130034,-646.63,0.0005726,120]
[342805219,1732143130044,-806.31,0.0005726,120]
[342805220,1732143130053,-500.0,0.0005726,120]
[342805221,1732143130063,-1287.88,0.0005726,120]
[342805222,1732143130073,-1410.77,0.0005726,120]
[342805223,1732143130083,-500.0,0.0005726,120]
[342805224,1732143130093,-500.0,0.0005726,120]
[342805225,1732143130103,-623.91,0.0005726,120]
[342805226,1732143130112,-500.0,0.0005726,120]
[342805227,1732143130122,-228.273339,0.0005726,120]
[342805228,1732143130131,-500.0,0.0005726,120]
[342805229,1732143130140,-766.21,0.0005726,120]
[342805230,1732143130150,-1000.52,0.0005726,120]
[342805231,1732143130160,-228.273339,0.0005726,120]
[342805232,1732143130169,-500.0,0.0005726,120]
[342805233,1732143130179,-1013.49,0.0005726,120]
[342805234,1732143130190,-811.56,0.0005726,120]
[342805235,1732143130200,-500.0,0.0005726,120]
[342805236,1732143130209,-500.0,0.0005726,120]
[342805237,1732143130219,-3361.2,0.0005726,120]
[342805238,1732143130230,-151.0,0.0005726,120]
[342805239,1732143130240,-1185.33,0.0005726,120]
[342805240,1732143130250,-633.81,0.0005726,120]
[342805241,1732143130260,-244.673666,0.0005726,120]
[342805242,1732143130271,-838.48,0.0005726,120]
[342805243,1732143130280,-1382.6,0.0005726,120]
[342805244,1732143130290,-588.41684301,0.0005726,120]
[342805245,1732143130299,-244.673666,0.0005726,120]
[342805246,1732143130310,-500.0,0.0005726,120]
[342805247,1732143130320,-2198.56,0.0005726,120]
[342805248,1732143130330,-500.0,0.0005726,120]
[342805249,1732143130340,-658.16,0.0005726,120]
[342805250,1732143130350,-500.0,0.0005726,120]
[342805251,1732143130361,-151.169308,0.0005726,120]
[342805252,1732143130370,-500.0,0.0005726,120]
[342805253,1732143130379,-500.0,0.0005726,120]
[342805254,1732143130388,-581.06,0.0005726,120]
[342805255,1732143130398,-500.0,0.0005726,120]
[342805256,1732143130409,-151.0,0.0005726,120]
[342805257,1732143130419,-500.0,0.0005726,120]
[342805258,1732143130429,-843.03,0.0005726,120]
[342805259,1732143130439,-500.0,0.0005726,120]
[342805260,1732143130449,-665.72,0.0005726,120]
[342805261,1732143130458,-789.82,0.0005726,120]
[342805262,1732143130468,-773.4,0.0005726,120]
[342805263,1732143130477,-660.24,0.0005726,120]
[342805264,1732143130487,-500.0,0.0005726,120]
[342805265,1732143130497,-504.35,0.0005726,120]
[342805266,1732143130506,-2411.2,0.0005726,120]
[342805267,1732143130516,-151.0,0.0005726,120]
[342805268,1732143130526,-3997.56,0.0005726,120]
[342805269,1732143130537,-500.0,0.0005726,120]
[342805270,1732143130548,-151.0,0.0005726,120]
[342805271,1732143130558,-500.0,0.0005726,120]
[342805272,1732143130568,-151.0,0.0005726,7]
[342805273,1732143130580,-500.0,0.0005726,120]
[342805274,1732143130590,-559.66,0.0005726,120]
[342805275,1732143130601,-1755.1,0.0005726,120]
[342805276,1732143130612,-500.0,0.0005726,120]
[342805277,1732143130623,-599.66300074,0.0005726,120]
[342805278,1732143130633,-1021.42,0.0005726,120]
[342805279,1732143130642,-968.59,0.0005726,120]
[342805280,1732143130653,-500.0,0.0005726,120]
[342805281,1732143130664,-747.74,0.0005726,120]
[342805282,1732143130673,-500.0,0.0005726,120]
[342805283,1732143130683,-650.26,0.0005726,120]
[342805284,1732143130694,-552.66,0.0005726,120]
[342805285,1732143130703,-528.53,0.0005726,120]
[342805286,1732143130712,-661.12,0.0005726,120]
[342805287,1732143130722,-4504.33,0.0005726,120]
[342805288,1732143130732,-500.0,0.0005726,120]
[342805289,1732143130741,-500.0,0.0005726,120]
[342805290,1732143130751,-1414.7,0.0005726,120]
[342805291,1732143130760,-1839.1,0.0005726,20]
[342805292,1732143130770,-500.0,0.0005726,120]
[342805293,1732143130779,-600.15,0.0005726,120]
[342805294,1732143130788,-500.0,0.0005726,120]
[342805295,1732143130798,-639.71,0.0005726,120]
[342805296,1732143130807,-500.0,0.0005726,120]
[342805297,1732143130817,-1685.02,0.0005726,120]
[342805298,1732143130826,-500.0,0.0005726,120]
[342805299,1732143130835,-643.92,0.0005726,120]
[342805300,1732143130845,-500.0,0.0005726,120]
[342805301,1732143130855,-503.41,0.0005726,120]
[342805302,1732143130864,-1838.85,0.0005726,120]
[342805303,1732143130873,-777.36,0.0005726,120]
[342805304,1732143130883,-1088.52,0.0005726,120]
[342805305,1732143130894,-3963.88,0.0005726,120]
[342805306,1732143130905,-500.0,0.0005726,120]
[342805307,1732143130915,-439.698091,0.0005726,120]
[342805308,1732143130924,-500.0,0.0005726,120]
[342805309,1732143130937,-439.698091,0.0005726,120]
[342805310,1732143130947,-500.0,0.0005726,120]
[342805311,1732143130957,-500.0,0.0005726,120]
[342805312,1732143130969,-508.93,0.0005726,120]
[342805313,1732143130981,-500.0,0.0005726,120]
[342805314,1732143130991,-522.18,0.0005726,120]
[342805315,1732143131000,-674.72,0.0005726,120]
[342805316,1732143131011,-151.0,0.0005726,120]
[342805317,1732143131020,-1573.1,0.0005726,120]
[342805318,1732143131030,-500.0,0.0005726,120]
[342805319,1732143131040,-452.50835226,0.0005726,120]
[342805320,1732143131050,-1344.45,0.0005726,120]
[342805321,1732143131062,-695.34,0.0005726,120]
[342805322,1732143131073,-5030.76,0.0005726,120]
[342805323,1732143131083,-530.39,0.0005726,120]
[342805324,1732143131093,-993.23,0.0005726,120]
[342805325,1732143131102,-1007.71,0.0005726,120]
[342805326,1732143131113,-845.57,0.0005726,120]
[342805327,1732143131124,-1508.05,0.0005726,120]
[342805328,1732143131135,-1000.0,0.0005726,30]
[342805329,1732143131145,-500.0,0.0005726,120]
[342805330,1732143131156,-1949.27,0.0005726,120]
[342805331,1732143131165,-635.4,0.0005726,120]
[342805332,1732143131175,-3671.8,0.0005726,120]
[342805333,1732143131185,-873.15,0.0005726,120]
[342805334,1732143131197,-500.0,0.0005726,120]
[342805335,1732143131206,-500.0,0.0005726,120]
[342805336,1732143131216,-1275.78,0.0005726,120]
[342805337,1732143131225,-1300.6,0.0005726,120]
[342805338,1732143131235,-1078.43,0.0005726,120]
[342805339,1732143131245,-500.0,0.0005726,120]
[342805340,1732143131255,-1015.57,0.0005726,120]
[342805341,1732143131264,-729.83,0.0005726,120]
[342805342,1732143131274,-562.04,0.0005726,120]
[342805343,1732143131283,-2596.1,0.0005726,120]
[342805344,1732143131294,-2222.66,0.0005726,120]
[342805345,1732143131305,-1080.64,0.0005726,120]
[342805346,1732143131315,-852.14,0.0005726,120]
[342805347,1732143131325,-569.32,0.0005726,120]
[342805348,1732143131336,-500.0,0.0005726,120]
[342805349,1732143131346,-509.24,0.0005726,120]
[342805350,1732143131356,-1411.12131,0.0005726,120]
[342805351,1732143131365,-700.0,0.0005726,120]
[342805352,1732143131375,-928.5,0.0005726,120]
[342805353,1732143131384,-1411.12131,0.0005726,120]
[342805354,1732143131395,-1806.6,0.0005726,120]
[342805355,1732143131405,-1129.79,0.0005726,120]
[342805356,1732143131414,-500.0,0.0005726,120]
[342805357,1732143131424,-500.0,0.0005726,120]
[342805358,1732143131433,-500.0,0.0005726,120]
[342805359,1732143131445,-2425.19,0.0005726,120]
[342805360,1732143131454,-625.0,0.0005726,120]
[342805361,1732143131464,-500.0,0.0005726,120]
[342805362,1732143131475,-500.0,0.0005726,120]
[342805363,1732143131485,-1018.93,0.0005726,120]
[342805364,1732143131494,-2073.72,0.0005726,120]
[342805365,1732143131504,-500.0,0.0005726,120]
[342805366,1732143131514,-1011.93,0.0005726,120]
[342805367,1732143131524,-1257.41,0.0005726,120]
[342805368,1732143131533,-500.0,0.0005726,120]
[342805369,1732143131542,-1328.54,0.0005726,120]
[342805370,1732143131552,-893.2,0.0005726,120]
[342805371,1732143131562,-878.56,0.0005726,120]
[342805372,1732143131573,-1954.12,0.0005726,120]
[342805373,1732143131581,-1107.33,0.0005726,120]
[342805374,1732143131591,-5394.68,0.0005726,120]
[342805375,1732143131602,-500.0,0.0005726,120]
[342805376,1732143131611,-500.0,0.0005726,120]
[342805377,1732143131622,-229.97933885,0.0005726,120]
[342805378,1732143131632,-543.1,0.0005726,120]
[342805379,1732143131642,-965.73,0.0005726,120]
[342805380,1732143131652,-500.0,0.0005726,120]
[342805381,1732143131662,-500.0,0.0005726,120]
[342805382,1732143131674,-500.0,0.0005726,120]
[342805383,1732143131683,-500.0,0.0005726,120]
[342805384,1732143131695,-1308.091702,0.0005726,120]
[342805385,1732143131704,-1317.76,0.0005726,120]
[342805386,1732143131714,-1308.091702,0.0005726,120]
[342805387,1732143131725,-594.46,0.0005726,120]
[342805388,1732143131734,-1510.86,0.0005726,120]
[342805389,1732143131744,-1617.12,0.0005726,120]
[342805390,1732143131754,-657.08,0.0005726,120]
[342805391,1732143131765,-4865.56,0.0005726,120]
[342805392,1732143131776,-628.07,0.0005726,120]
[342805393,1732143131785,-500.0,0.0005726,120]
[342805394,1732143131795,-500.0,0.0005726,120]
[342805395,1732143131806,-500.0,0.0005726,120]
[342805396,1732143131815,-2529.98,0.0005726,120]
[342805397,1732143131826,-635.24,0.0005726,120]
[342805398,1732143131836,-750.97,0.0005726,120]
[342805399,1732143131847,-1761.11,0.0005726,120]
[342805400,1732143131857,-500.0,0.0005726,120]
[342805401,1732143131867,-624.76,0.0005726,120]
[342805402,1732143131876,-500.0,0.0005726,120]
[342805403,1732143131885,-46265.17,0.0005726,120]
[342805404,1732143131896,-562.94073382,0.0005726,120]
[342805405,1732143131907,-500.0,0.0005726,120]
[342805406,1732143131918,-644.52,0.0005726,120]
[342805407,1732143131931,-880.93,0.0005726,120]
[342805408,1732143131942,-500.0,0.0005726,120]
[342805409,1732143131951,-4390.12,0.0005726,120]
[342805410,1732143131961,-500.0,0.0005726,120]
[342805411,1732143131970,-3641.91,0.0005726,120]
[342805412,1732143131981,-500.0,0.0005726,120]
[342805413,1732143131991,-2046.77,0.0005726,120]
[342805414,1732143132000,-621.4154,0.0005726,120]
[342805415,1732143132010,-500.0,0.0005726,120]
[342805416,1732143132020,-519.31,0.0005726,120]
[342805417,1732143132030,-1582.94,0.0005726,120]
[342805418,1732143132040,-1566.08,0.0005726,120]
[342805419,1732143132050,-1540.18,0.0005726,120]
[342805420,1732143132060,-500.0,0.0005726,120]
[342805421,1732143132071,-500.0,0.0005726,120]
[342805422,1732143132082,-206.2835436,0.0005726,10]
[342805423,1732143132091,-32182.96,0.0005726,120]
[342805424,1732143132101,-500.0,0.0005726,120]
[342805425,1732143132111,-2395.44,0.0005726,120]
[342805426,1732143132120,-500.0,0.0005726,120]
[342805427,1732143132130,-500.0,0.0005726,120]
[342805428,1732143132139,-774.88,0.0005726,120]
[342805429,1732143132149,-500.0,0.0005726,120]
[342805430,1732143132158,-500.0,0.0005726,120]
[342805431,1732143132167,-500.0,0.0005726,120]
[342805432,1732143132176,-3018.97,0.0005726,120]
[342805433,1732143132186,-1221.56,0.0005726,120]
[342805434,1732143132195,-949.33,0.0005726,120]
[342805435,1732143132205,-500.0,0.0005726,120]
[342805436,1732143132216,-500.0,0.0005726,120]
[342805437,1732143132225,-500.0,0.0005726,120]
[342805438,1732143132235,-500.0,0.0005726,120]
[342805439,1732143132244,-512.47,0.0005726,120]
[342805440,1732143132254,-500.0,0.0005726,120]
[342805441,1732143132514,-975.73,0.0005726,120]
[342805442,1732143132525,-500.0,0.0005726,120]
[342805443,1732143132534,-1680.87,0.0005726,120]
[342805444,1732143132545,-2068.97,0.0005726,120]
[342805445,1732143132554,-509.92,0.0005726,120]
[342805446,1732143132563,-2386.08,0.0005726,120]
[342805447,1732143132573,-850.0,0.0005726,120]
[342805448,1732143132582,-2587.78,0.0005726,120]
[342805449,1732143132591,-1481.97,0.0005726,120]
[342805450,1732143132602,-500.0,0.0005726,120]
[342805451,1732143132612,-1478.74,0.0005726,120]
[342805452,1732143132622,-500.0,0.0005726,120]
[342805453,1732143132631,-500.0,0.0005726,120]
[342805454,1732143132640,-580.13,0.0005726,120]
[342805455,1732143132649,-467.21212319,0.0005726,120]
[342805456,1732143132658,-500.0,0.0005726,120]
[342805457,1732143132669,-1753.89,0.0005726,120]
[342805458,1732143132678,-500.0,0.0005726,120]
[342805459,1732143132690,-500.0,0.0005726,120]
[342805460,1732143132700,-816.51,0.0005726,120]
[342805461,1732143132710,-10880.09,0.0005726,120]
[342805462,1732143132720,-2245.37,0.0005726,120]
[342805463,1732143132729,-500.0,0.0005726,120]
[342805464,1732143132739,-500.0,0.0005726,120]
[342805465,1732143132749,-151.0,0.0005726,120]
[342805466,1732143132759,-500.0,0.0005726,120]
[342805467,1732143132769,-3622.31,0.0005726,120]
[342805468,1732143132779,-502.6,0.0005726,120]
[342805469,1732143132789,-500.0,0.0005726,120]
[342805470,1732143132799,-500.0,0.0005726,120]
[342805471,1732143132810,-500.0,0.0005726,120]
[342805472,1732143132819,-1317.84,0.0005726,120]
[342805473,1732143132829,-1518.89,0.0005726,90]
[342805474,1732143132841,-151.0,0.0005726,120]
[342805475,1732143132852,-1643.31,0.0005726,120]
[342805476,1732143132862,-1298.63,0.0005726,120]
[342805477,1732143132872,-943.47,0.0005726,120]
[342805478,1732143132882,-500.0,0.0005726,120]
[342805479,1732143132893,-1649.32,0.0005726,120]
[342805480,1732143132906,-550.87,0.0005726,120]
[342805481,1732143132916,-5640.48,0.0005726,120]
[342805482,1732143132928,-2158.9,0.0005726,120]
[342805483,1732143132942,-500.0,0.0005726,120]
[342805484,1732143132951,-1165.26,0.0005726,120]
[342805485,1732143132962,-1244.51,0.0005726,120]
[342805486,1732143132972,-500.0,0.0005726,120]
[342805487,1732143132982,-160.32098,0.0005726,120]
[342805488,1732143132992,-500.0,0.0005726,120]
[342805489,1732143133001,-500.9256,0.0005726,120]
[342805490,1732143133010,-9870.91,0.0005726,120]
[342805491,1732143133020,-1110.14,0.0005726,120]
[342805492,1732143133029,-986.78,0.0005726,120]
[342805493,1732143133039,-567.02,0.0005726,120]
[342805494,1732143133048,-500.9256,0.0005726,120]
[342805495,1732143133058,-500.0,0.0005726,120]
[342805496,1732143133068,-651.9,0.0005726,120]
[342805497,1732143133078,-500.0,0.0005726,120]
[342805498,1732143133087,-3368.96,0.0005726,120]
[342805499,1732143133096,-500.0,0.0005726,120]
[342805500,1732143133107,-6243.58,0.0005726,120]
[342805501,1732143133117,-500.0,0.0005726,120]
[342805502,1732143133131,-1221.81,0.0005726,120]
[342805503,1732143133141,-1021.75,0.0005726,120]
[342805504,1732143133153,-500.0,0.0005726,120]
[342805505,1732143133162,-1378.96,0.0005726,120]
[342805506,1732143133173,-500.0,0.0005726,120]
[342805507,1732143133185,-1402.48,0.0005726,120]
[342805508,1732143133198,-2324.89,0.0005726,120]
[342805509,1732143133207,-1098.99,0.0005726,7]
[342805510,1732143133216,-500.0,0.0005726,120]
[342805511,1732143133225,-500.0,0.0005726,120]
[342805512,1732143133235,-3357.52,0.0005726,120]
[342805513,1732143133244,-151.0,0.0005726,120]
[342805514,1732143133254,-631.52,0.0005726,120]
[342805515,1732143133266,-1503.83,0.0005726,120]